[Event "1st Uppsala Festival 2022"]
[Site "Uppsala"]
[Date "2022.08.10"]
[Round "4.1"]
[White "Johansson, Jan"]
[Black "Lindberg, Bengt"]
[Result "0-1"]
[ECO "E12"]
[WhiteElo "2306"]
[BlackElo "2370"]
[Annotator "TA"]
[PlyCount "34"]
[EventDate "2022.08.09"]
[EventType "tourn"]
[EventCountry "SWE"]
[SourceTitle "playchess.com"]
[Source "ChessBase"]
[SourceQuality "1"]
[TimeControl "5400+30"]

{[%evp 16,34,-9,-6,-9,-10,0,0,0,0,0,0,-6,-5,-6,-8,-8,-561,-560,-537,-523]} 1. d4 {[%emt 0:04:14]} Nf6 {[%emt 0:00:06]} 2. Nf3 {[%emt 0:00:12]} e6 {[%emt 0:00:17]} 3. c4 {[%emt 0:00:50]} b6 {[%emt 0:00:14]} 4. Bg5 {[%emt 0:01:02]} Bb7 {[%emt 0:00:49]} 5. e3 {[%emt 0:02:21]} h6 {[%emt 0:01:02]} 6. Bh4 {[%emt 0:00:11]} Be7 {[%emt 0:01:22]} 7. Nc3 {[%emt 0:00:33]} O-O {[%emt 0:00:43]} 8. Bd3 {[%emt 0:04:41]} c5 {[%emt 0:00:58]} 9. O-O {[%emt 0:01:53]} Nc6 {[%emt 0:00:50] E12: Queen's Indian: Unusual White 4th moves, 4 a3, 4 Nc3 Bb7 5 a3 and 4 Nc3 Bb7 .} 10. Rc1 {[%emt 0:06:37]} cxd4 {[%emt 0:01:09]} 11. exd4 {[%emt 0:00:06]} d5 {[%emt 0:00:26] The position is equal.} 12. Bxf6 {[%emt 0:05:24]} Bxf6 {[%emt 0:02:05]} 13. cxd5 {[%emt 0:00:44] [#]} Nxd4 $146 {[%emt 0:05:38]} ({Predecessor:} 13... exd5 14. Bb1 Re8 15. Qd3 g6 16. Rfe1 Qd6 17. h3 Rad8 18. Qd2 Kg7 19. Rcd1 Na5 20. Nb5 Qd7 21. Bd3 Nc4 {0-1 (38) Murali Krishnan,B (2412)-Short,N (2655) Nagpur 2008}) 14. Nxd4 {[%emt 0:01:02]} Bxd4 {[%emt 0:00:04] A strong pair of Bishops.} 15. dxe6 {[%emt 0:00:36]} fxe6 {[%emt 0:00:06]} 16. Qe2 $2 {[%emt 0:08:41][%mdl 8192]} (16. Rc2 $11) 16... Qg5 $19 {[%emt 0:07:11][%csl Gb7][%cal Rg5g2]} 17. Be4 {[%emt 0:43:21] [#]} Rxf2 $1 {[%emt 1:16:00][%mdl 512] Weighted Error Value: White=0.87/Black=0.00 (flawless)} 0-1

[Event "1st Uppsala Festival 2022"]
[Site "Uppsala"]
[Date "2022.08.10"]
[Round "4.2"]
[White "Larkin, Vladyslav"]
[Black "Stefansson, Vignir Vatnar"]
[Result "1/2-1/2"]
[ECO "C07"]
[WhiteElo "2455"]
[BlackElo "2461"]
[Annotator "TA"]
[PlyCount "87"]
[EventDate "2022.08.09"]
[EventType "tourn"]
[EventCountry "SWE"]
[SourceTitle "playchess.com"]
[Source "ChessBase"]
[SourceQuality "1"]
[TimeControl "5400+30"]

{[%evp 14,87,12,17,18,13,9,12,10,27,21,13,39,0,18,4,22,3,6,18,23,0,9,-10,0,0,0,0,0,0,0,0,3,0,0,0,8,8,6,0,0,0,0,0,0,-8,-8,-8,-8,-22,-22,-22,-8,-8,-8,-8,0,0,0,0,0,0,0,0,0,0,0,0,0,0,0,0,0,0,0,0]} 1. e4 {[%emt 0:09:47]} e6 {[%emt 0:00:45]} 2. d4 {[%emt 0:00:17]} d5 {[%emt 0:00:07]} 3. Nd2 {[%emt 0:01:31]} c5 {[%emt 0:00:26]} 4. Ngf3 {[%emt 0:00:07]} cxd4 {[%emt 0:00:08]} 5. exd5 {[%emt 0:00:05]} Qxd5 {[%emt 0:00:08]} 6. Bc4 {[%emt 0:00:09]} Qd8 {[%emt 0:00:12]} 7. O-O {[%emt 0:00:08]} Nc6 {[%emt 0:00:26]} 8. Nb3 {[%emt 0:00:28][%cal Rb3d4]} a6 {[%emt 0:00:08] C07: French Tarrasch: 3...c5, 4 Ngf3 and 4 exd5 Qxd5.} 9. Nbxd4 {[%emt 0:00:25]} Nxd4 {[%emt 0:00:08]} 10. Qxd4 {[%emt 0:01:00]} Qxd4 {[%emt 0:00:08]} 11. Nxd4 {[%emt 0:00:06]} Bd7 $1 {[%emt 0:00:40] The main line 11...Bd7 scores better than 11...Nf6.} 12. c3 {[%emt 0:00:54] [#]} Bc5 $146 {[%emt 0:01:26]} ({Predecessor:} 12... O-O-O 13. Bf4 Bc5 14. Rad1 Ne7 15. Nb3 Bb6 16. Bd6 Rhe8 17. Rfe1 Bc6 18. Bc5 Bxc5 19. Nxc5 {½-½ (41) Zhao,C (2383)-Vaibhav,S (2599) Xingtai 2019}) 13. Nb3 {[%emt 0:10:06]} Ba7 {[%emt 0:02:38]} 14. Re1 {[%emt 0:02:03]} O-O-O {[%emt 0:05:07]} 15. Be3 {[%emt 0:07:47]} Bxe3 {[%emt 0:00:28]} 16. Rxe3 {[%emt 0:00:04]} Ne7 {[%emt 0:02:19]} 17. Ree1 {[%emt 0:01:53]} Bc6 {[%emt 0:01:17] The position is equal.} 18. Rad1 {[%emt 0:00:26]} Rxd1 {[%emt 0:13:32]} 19. Rxd1 {[%emt 0:00:07]} Ba4 {[%emt 0:00:37]} 20. Rd2 {[%emt 0:01:55]} Bxb3 {[%emt 0:00:56]} 21. Bxb3 {[%emt 0:00:11]} Rd8 {[%emt 0:00:23]} 22. Rxd8+ {[%emt 0:00:04]} Kxd8 $11 {[%emt 0:00:05][%mdl 4096] Endgame KB-KN} 23. Kf1 {[%emt 0:02:01]} g5 {[%emt 0:02:43][%cal Bg7g5,Bg5h4][%mdl 32]} 24. Ke2 {[%emt 0:04:09]} Kc7 {[%emt 0:01:06]} 25. Kf3 {[%emt 0:03:33]} h5 {[%emt 0:01:27]} 26. h4 {[%emt 0:12:29]} gxh4 {[%emt 0:00:17]} 27. Kf4 {[%emt 0:00:03]} Ng6+ {[%emt 0:00:45]} 28. Kg5 {[%emt 0:01:16][%cal Ob3e6] [#] Threatens to win with Bxe6!} Ne5 {[%emt 0:00:30]} 29. Bd1 {[%emt 0:05:35]} Nd3 {[%emt 0:01:58][%csl LRb2,LRf2]} 30. Bxh5 {[%emt 0:02:22]} f5 {[%emt 0:03:54]} 31. Kxh4 {[%emt 0:06:01]} Nxb2 {[%emt 0:03:23]} 32. Kg5 {[%emt 0:04:32]} Kd6 {[%emt 0:10:37] White should prevent ...Na4.} 33. f3 {[%emt 0:01:35][%cal Bf2f3,Bf3g4,Bg4g5,Bg5g6][%mdl 32]} Nd1 {[%emt 0:00:53]} 34. g4 {[%emt 0:00:30]} fxg4 {[%emt 0:01:46]} 35. fxg4 {[%emt 0:00:47]} Nxc3 {[%emt 0:00:27]} 36. Kh6 {[%emt 0:00:03]} Nd5 {[%emt 0:06:20]} 37. g5 {[%emt 0:00:25] Strongly threatening Bf3.} Ne7 {[%emt 0:04:30]} 38. Kg7 {[%emt 0:05:20]} b5 {[%emt 0:00:59]} 39. Be2 {[%emt 0:00:03]} e5 {[%emt 0:05:58]} 40. Kf7 {[%emt 0:00:04]} e4 {[%emt 0:00:39]} 41. g6 {[%emt 0:01:04]} e3 {[%emt 0:04:30]} 42. Kf6 {[%emt 0:01:33]} Nd5+ {[%emt 0:01:08]} 43. Kf7 {[%emt 0:00:05]} Ne7 {[%emt 0:06:32]} 44. Kf6 {[%emt 0:06:38] An uneventful encounter.  Weighted Error Value: White=0.06 (flawless) /Black=0.03 (flawless)} 1/2-1/2

[Event "1st Uppsala Festival 2022"]
[Site "Uppsala"]
[Date "2022.08.10"]
[Round "4.3"]
[White "Sriram, Jha"]
[Black "Akesson, Ralf"]
[Result "1-0"]
[ECO "E46"]
[WhiteElo "2361"]
[BlackElo "2427"]
[Annotator "TA"]
[PlyCount "89"]
[EventDate "2022.08.09"]
[EventType "tourn"]
[EventCountry "SWE"]
[SourceTitle "playchess.com"]
[Source "ChessBase"]
[SourceQuality "1"]
[TimeControl "5400+30"]

{[%evp 9,89,5,2,-1,0,-8,-6,-25,-20,-45,5,3,8,13,21,10,28,0,24,37,22,19,22,26,17,0,8,10,21,9,39,8,28,32,49,20,26,24,30,21,39,39,39,39,49,39,63,35,43,19,25,0,52,19,19,19,19,4,26,8,4,5,51,19,49,58,249,249,308,304,359,350,367,368,531,511,605,605,597,582,560,546]} 1. d4 {[%emt 0:00:09]} Nf6 {[%emt 0:00:13]} 2. c4 {[%emt 0:00:08]} e6 {[%emt 0:00:09]} 3. Nc3 {[%emt 0:01:00]} Bb4 {[%emt 0:00:10][%cal Bf8b4,Bb4a5,Ba5c7][%mdl 32]} 4. e3 {[%emt 0:00:22]} O-O {[%emt 0:00:48]} 5. Nge2 {[%emt 0:00:05]} c6 {[%emt 0:01:43]} 6. a3 {[%emt 0:00:24] E46: Nimzo-Indian: Rubinstein: 4 e3 0-0 5 Ne2 without early Bd3.} Ba5 {[%emt 0:00:07]} 7. b4 {[%emt 0:08:31]} Bc7 {[%emt 0:01:35]} 8. g3 {[%emt 0:06:02] The position is equal.} d5 {[%emt 0:06:28]} 9. cxd5 {[%emt 0:01:15]} cxd5 {[%emt 0:00:49]} (9... exd5 $15 10. Qd3 Nbd7) 10. Bg2 $11 {[%emt 0:00:28]} Nbd7 {[%emt 0:00:54]} 11. O-O {[%emt 0:00:45]} Nb6 {[%emt 0:00:39]} 12. a4 {[%emt 0:03:58]} a5 {[%emt 0:05:32] [#]} 13. b5 $146 {[%emt 0:00:55]} ({Predecessor:} 13. bxa5 Rxa5 14. Ba3 Re8 15. Bb4 Ra6 16. Nc1 Bd7 17. Nd3 Bc6 18. Nc5 Ra8 19. Qe2 {0-1 (59) Meza,A (2101)-Real de Azua,E (2478) Buenos Aires 2017}) 13... e5 {[%emt 0:02:51]} 14. dxe5 {[%emt 0:13:31]} Bxe5 {[%emt 0:00:16]} 15. Ba3 {[%emt 0:00:07]} Re8 {[%emt 0:01:27]} 16. Bc5 {[%emt 0:00:07]} Bg4 {[%emt 0:06:15] [#] aiming for ...Bxc3.} 17. Bd4 {[%emt 0:02:22]} Rc8 {[%emt 0:06:22][%cal Oc8c3] Strongly threatening ...Rxc3!} 18. Bxe5 {[%emt 0:03:39]} Rxe5 {[%emt 0:00:09]} 19. Qd4 {[%emt 0:00:17]} Qd6 {[%emt 0:06:11]} 20. Rfc1 {[%emt 0:20:11][%cal Oc3d5]} (20. h3 $5 {[%cal Rh3g4]} Bxe2 21. Nxe2 $11) 20... h5 {[%emt 0:06:20]} 21. h3 {[%emt 0:03:13]} Bf5 {[%emt 0:07:59]} 22. Nd1 {[%emt 0:04:31]} Rce8 {[%emt 0:19:00]} 23. Qc5 {[%emt 0:03:18]} Qd8 {[%emt 0:02:33]} 24. Qc7 {[%emt 0:02:00]} R5e7 {[%emt 0:01:48]} 25. Qxd8 {[%emt 0:00:07]} Rxd8 {[%emt 0:00:02]} 26. Nd4 {[%emt 0:00:17]} Bg6 {[%emt 0:01:14]} 27. Nb2 {[%emt 0:05:01]} Ne8 {[%emt 0:03:41][%cal Bf6e8,Be8c7,Bc7e6][%mdl 32]} 28. Rc5 {[%emt 0:06:36]} Nc7 {[%emt 0:02:12]} 29. Rd1 {[%emt 0:00:25]} (29. Nb3 $5 {[%cal Rb3a5]}) 29... Ne6 {[%emt 0:03:23]} 30. Rc3 {[%emt 0:00:48]} (30. Rcc1 $5 {[%cal Rd4b3]}) 30... Red7 {[%emt 0:01:37]} ({Black should play} 30... Nxd4 $11 31. Rxd4 Rdd7) 31. h4 {[%emt 0:00:11]} Nxd4 {[%emt 0:01:42]} 32. Rxd4 {[%emt 0:00:09]} Bf5 {[%emt 0:00:29]} 33. Bf1 {[%emt 0:04:58][%cal Bg2f1,Bf1d3,Bd3c2][%mdl 32]} Kf8 {[%emt 0:01:09]} 34. Bd3 {[%emt 0:01:29]} Bg4 {[%emt 0:01:27]} 35. Bc2 {[%emt 0:00:58]} g6 {[%emt 0:03:50]} (35... Rc8 $11 {is superior.} 36. Rxc8+ Nxc8) 36. Kg2 {[%emt 0:00:32]} Be6 {[%emt 0:01:10]} 37. Nd3 {[%emt 0:00:56][%cal Bb2d3,Bd3e5,Be5c6][%mdl 32]} Ke7 $2 {[%emt 0:02:20] This move loses the game for Black.} (37... Ke8 $14) 38. Ne5 $18 {[%emt 0:03:25]} Rd6 {[%emt 0:00:06]} 39. Rc7+ {[%emt 0:00:06]} Ke8 {[%emt 0:01:40]} 40. Rxb7 {[%emt 0:02:30]} Nc4 {[%emt 0:00:13]} 41. Nc6 {[%emt 0:02:10]} Ra8 {[%emt 0:00:09]} (41... Rc8 {was worth a try.} 42. Bb3 Rcxc6) 42. Bb3 {[%emt 0:00:50] [#] And now Bxc4 would win. White is clearly winning.} Rd7 {[%emt 0:03:11]} 43. Rxd7 {[%emt 0:00:26]} Bxd7 {[%emt 0:00:06]} 44. Rxd5 {[%emt 0:00:47]} Nb6 {[%emt 0:00:29]} 45. Rd6 {[%emt 0:00:44] Weighted Error Value: White=0.10 (very precise) /Black=0.30} 1-0

[Event "1st Uppsala Festival 2022"]
[Site "Uppsala"]
[Date "2022.08.10"]
[Round "4.4"]
[White "Sorensen, Hampus"]
[Black "Savitha Shri B"]
[Result "1-0"]
[ECO "E04"]
[WhiteElo "2376"]
[BlackElo "2278"]
[Annotator "TA"]
[PlyCount "103"]
[EventDate "2022.08.09"]
[EventType "tourn"]
[EventCountry "SWE"]
[SourceTitle "playchess.com"]
[Source "ChessBase"]
[SourceQuality "1"]
[TimeControl "5400+30"]

{[%evp 18,103,19,7,54,27,29,31,49,49,46,38,47,22,103,51,62,77,40,31,84,76,85,102,97,76,147,153,211,200,241,236,239,246,241,248,229,256,257,215,220,206,210,214,216,233,327,325,341,325,651,384,981,938,816,444,541,532,520,442,1043,1043,872,379,29990,375,380,380,380,379,368,345,372,345,350,325,418,360,591,578,882,575,589,586,570,566,5056,5035]} 1. Nf3 {[%emt 0:00:44]} Nf6 {[%emt 0:00:54]} 2. g3 {[%emt 0:00:30]} d5 {[%emt 0:01:14]} 3. Bg2 {[%emt 0:01:01]} c5 {[%emt 0:01:12]} 4. O-O {[%emt 0:09:57]} Nc6 {[%emt 0:02:23]} 5. d4 {[%emt 0:00:29]} e6 {[%emt 0:06:21]} 6. c4 {[%emt 0:04:33]} dxc4 {[%emt 0:06:37]} 7. dxc5 {[%emt 0:05:18]} Qxd1 {[%emt 0:03:12]} 8. Rxd1 {[%emt 0:00:09]} Bxc5 {[%emt 0:02:44]} 9. Nbd2 {[%emt 0:00:11]} c3 {[%emt 0:06:58]} 10. bxc3 {[%emt 0:00:27] [#]} h6 $146 {[%emt 0:08:06] Prevents Ng5. E04: Open Catalan: 5 Nf3.} (10... Bd7 $11) ({Predecessor:} 10... O-O 11. Nb3 Be7 12. Nfd4 Bd7 13. Nxc6 Bxc6 14. Bxc6 bxc6 15. Be3 Nd5 16. Bd4 c5 17. Nxc5 Bxc5 18. Bxc5 Rfc8 19. Bd4 Nxc3 20. Bxc3 Rxc3 {½-½ (30) Radjabov,T (2753)-Nepomniachtchi,I (2766) Madrid 2022}) 11. Nb3 {[%emt 0:05:17]} Be7 {[%emt 0:09:17]} 12. Nfd4 {[%emt 0:15:49]} Nxd4 {[%emt 0:03:38] White is slightly better.} 13. cxd4 {[%emt 0:01:28]} Nd5 {[%emt 0:03:02]} 14. e4 {[%emt 0:03:53]} Nc3 {[%emt 0:03:20]} 15. Rd3 {[%emt 0:13:25]} Na4 {[%emt 0:03:35]} (15... Ne2+ $11 16. Kh1 Nxc1 17. Rxc1 O-O) 16. Be3 {[%emt 0:04:09]} (16. Na5 $16) 16... Bd7 {[%emt 0:03:59]} 17. d5 $36 {[%emt 0:03:22][%mdl 2048] Black is under strong pressure.} Bb5 {[%emt 0:02:37]} 18. Rd2 {[%emt 0:28:48]} exd5 {[%emt 0:05:19]} (18... Bb4 $1 $14) 19. exd5 $16 {[%emt 0:00:00] White leaves nothing to chance now.} Bd6 {[%emt 0:01:37]} 20. Nd4 {[%emt 0:00:00]} Bd7 {[%emt 0:00:05]} 21. Rb1 {[%emt 0:00:00]} b6 {[%emt 0:06:30] [#]} (21... Nb6 $142) 22. Ne6 $1 {[%emt 0:00:00] White is more active.} Rg8 {[%emt 0:02:20] [#]} (22... fxe6 $2 23. dxe6 Bxe6 24. Bxa8 $18) (22... f6 $16) 23. Re1 $1 $18 {[%emt 0:00:00][%cal Oe6c7] Threatens to win with Nc7+!} Rc8 {[%emt 0:03:10] [#]} (23... f5 24. Nc7+) 24. Nxg7+ $1 {[%emt 0:00:00][%mdl 512]} Kd8 {[%emt 0:02:14] [#]} (24... Rxg7 25. Bf4+) 25. Ne6+ {[%emt 0:00:00][%mdl 512]} Ke7 {[%emt 0:01:35] [#]} 26. Nc5 {[%emt 0:00:00][%mdl 512]} Bxc5 {[%emt 0:02:53]} 27. Bxc5+ {[%emt 0:00:00][%mdl 64] Discovered Attack (Double check)} Kf6 {[%emt 0:00:07]} 28. Bd4+ {[%emt 0:00:00] This bishop pair is nice.} Kg6 {[%emt 0:00:04]} 29. h4 {[%emt 0:00:00]} Rge8 {[%emt 0:00:11] Prevents Re7.} 30. Rxe8 {[%emt 0:00:00]} Rxe8 {[%emt 0:00:02]} 31. Bf3 {[%emt 0:00:00]} Re1+ {[%emt 0:02:52]} (31... h5 $142 32. Rc2 Nc5) 32. Kg2 {[%emt 0:00:00]} h5 {[%emt 0:00:20]} 33. Rc2 {[%emt 0:00:00] Black must now prevent Rc7.} Bg4 $2 {[%emt 0:02:49]} (33... Re7 34. Rc1 f6) 34. Rc4 {[%emt 0:00:17]} b5 $2 {[%emt 0:01:50]} (34... Nc5 35. Bxg4 hxg4 36. Bxc5 bxc5 37. Rxg4+ Kf6) 35. Rc6+ {[%emt 0:00:07]} Kh7 {[%emt 0:00:02]} 36. Bxa7 {[%emt 0:00:50] Hoping for d6.} b4 {[%emt 0:00:16]} 37. Bxg4 {[%emt 0:00:35]} hxg4 {[%emt 0:00:02][%mdl 4096] Endgame KRB-KRN} 38. Rc4 {[%emt 0:00:29]} Nc3 {[%emt 0:01:51]} (38... Re7 $142 39. Bd4 Nc3 40. Bxc3 bxc3 41. Rxc3 Rd7) 39. d6 {[%emt 0:00:38] Intending d7 and mate.} Ne2 {[%emt 0:00:44]} 40. d7 {[%emt 0:01:20]} (40. Rxg4 $142 Rd1 41. Re4) 40... Rg1+ {[%emt 0:00:12]} 41. Kh2 {[%emt 0:00:06]} Rd1 {[%emt 0:00:03]} 42. Rxg4 {[%emt 0:00:57]} ({Inferior is} 42. Bd4 Nxd4 43. Kg2 Nf3 44. Rxg4 Ne1+ 45. Kf1 Nc2+ 46. Ke2 Rxd7 $17) 42... Rxd7 {[%emt 0:00:05]} 43. Be3 {[%emt 0:00:37]} Rb7 {[%emt 0:01:12]} 44. Bd2 {[%emt 0:01:23]} Ra7 {[%emt 0:00:48]} 45. Bxb4 {[%emt 0:01:02]} Rxa2 {[%emt 0:00:02]} 46. Bf8 {[%emt 0:00:51]} f5 {[%emt 0:00:31]} 47. Rc4 {[%emt 0:00:39]} f4 $2 {[%emt 0:01:09]} (47... Ra1 {was called for.} 48. h5 Ra7) 48. g4 {[%emt 0:01:24] White is clearly winning.} f3 {[%emt 0:02:04]} 49. Rc7+ {[%emt 0:01:37]} Kg6 {[%emt 0:00:11]} 50. Rg7+ {[%emt 0:00:51]} Kf6 {[%emt 0:00:05]} 51. Rg5 {[%emt 0:00:07]} Nd4 {[%emt 0:00:29]} 52. Bg7+ {[%emt 0:00:05] Weighted Error Value: White=0.39/Black=0.47} 1-0

[Event "1st Uppsala Festival 2022"]
[Site "Uppsala"]
[Date "2022.08.10"]
[Round "4.5"]
[White "Peng, Li Min"]
[Black "Trost, Edvin"]
[Result "1-0"]
[ECO "D12"]
[WhiteElo "2516"]
[BlackElo "2345"]
[Annotator "TA"]
[PlyCount "119"]
[EventDate "2022.08.09"]
[EventType "tourn"]
[EventCountry "SWE"]
[SourceTitle "playchess.com"]
[Source "ChessBase"]
[SourceQuality "1"]
[TimeControl "5400+30"]

{[%evp 15,119,23,22,18,22,16,16,18,18,0,0,0,31,26,34,49,31,39,29,21,47,49,47,41,46,53,53,42,58,0,0,0,0,0,76,88,82,73,271,243,383,390,388,384,417,406,402,412,413,405,410,410,583,366,383,381,378,372,377,370,498,491,478,493,500,500,500,500,490,475,470,460,431,372,572,525,860,850,811,778,1724,1571,1551,1511,29960,29957,6025,6107,29973,29974,29967,29972,29976,29977,29982,29983,29983,29984,29984,29985,29987,29988,29988,29989,29989,29990]} 1. c4 {[%emt 0:10:04]} c6 {[%emt 0:00:44]} 2. Nf3 {[%emt 0:01:01]} d5 {[%emt 0:00:06]} 3. d4 {[%emt 0:01:14]} Nf6 {[%emt 0:00:08]} 4. e3 {[%emt 0:00:06]} Bf5 {[%emt 0:02:07]} 5. Nc3 {[%emt 0:00:08]} e6 {[%emt 0:00:06]} 6. Nh4 {[%emt 0:00:03]} Be4 {[%emt 0:06:20]} 7. f3 {[%emt 0:00:23]} Bg6 {[%emt 0:00:03]} 8. Qb3 {[%emt 0:00:05]} Qc7 {[%emt 0:00:03]} 9. Bd2 {[%emt 0:00:08] D12: Slav Defence: 3 Nf3 Nf6 4 e3 Bf5.} Be7 {[%emt 0:04:07]} 10. cxd5 {[%emt 0:00:07]} cxd5 {[%emt 0:02:01]} 11. Nxg6 {[%emt 0:00:07] The position is equal.} hxg6 {[%emt 0:00:09]} 12. O-O-O {[%emt 0:00:03]} Nc6 {[%emt 0:07:37]} 13. Kb1 {[%emt 0:00:06]} Rc8 {[%emt 0:02:51]} 14. Rc1 {[%emt 0:00:09]} O-O {[%emt 0:00:20]} 15. Qd1 {[%emt 0:00:45]} e5 {[%emt 0:02:21]} 16. g4 {[%emt 0:18:06] [#]} exd4 $146 {[%emt 0:05:46]} ({Predecessor:} 16... Rcd8 17. Be1 exd4 18. Bg3 Qb6 19. Na4 Qa5 20. exd4 Rfe8 21. a3 Rc8 22. h4 b5 {0-1 (41) Verstraeten,R (2356)-Ducarmon,Q (2483) Netherlands 2019}) 17. exd4 {[%emt 0:00:04]} Nxd4 {[%emt 0:01:27]} 18. Nb5 {[%emt 0:00:54] Against Qd6} Qe5 {[%emt 0:00:44][%cal Of6e4] White must now prevent ...Ne4!} 19. Rxc8 {[%emt 0:00:04]} Rxc8 {[%emt 0:00:07]} 20. Bc3 {[%emt 0:00:51]} Rxc3 {[%emt 0:00:01]} 21. Nxc3 {[%emt 0:00:09]} Bb4 {[%emt 0:01:28]} 22. Nb5 {[%emt 0:03:29]} (22. Bd3 $1 $14) 22... Nc6 $1 $11 {[%emt 0:05:49]} 23. a3 $36 {[%emt 0:00:05][%mdl 2048] White has the initiative.} Ba5 {[%emt 0:00:19]} 24. Qc2 {[%emt 0:00:07]} d4 {[%emt 0:11:37] [#]} (24... a6 $11 25. Nc3 Qe1+ 26. Ka2 (26. Qc1 Bxc3 27. g5 Nh5 $15) 26... Qe3) 25. Bc4 $1 $16 {[%emt 0:00:02] Threatens to win with Qxg6.} a6 {[%emt 0:12:48]} 26. Qxg6 $1 {[%emt 0:00:43]} Qe7 {[%emt 0:00:25] This costs Black the game.} (26... Nd8 $16) 27. g5 $18 {[%emt 0:12:12]} Ne8 {[%emt 0:01:15] [#] Inhibits Nd6.} (27... Nh7 $142) 28. Qh5 $1 {[%emt 0:00:46][%cal Og5g6] White wants to mate with g6!} Ne5 {[%emt 0:12:35] [#]} 29. g6 $1 {[%emt 0:00:13]} Nxg6 {[%emt 0:00:02]} 30. Nxd4 {[%emt 0:03:10]} Bb6 {[%emt 0:02:06]} 31. Nf5 {[%emt 0:01:13]} Qf6 {[%emt 0:00:03]} 32. Re1 {[%emt 0:00:07][%cal Bh1e1,Be1e4,Be4g4,Bg4g1][%mdl 32]} Nc7 {[%emt 0:00:02]} 33. Re4 {[%emt 0:01:26] Prevents Nf4.} Bc5 {[%emt 0:01:44]} (33... Bf2 {keeps fighting.} 34. Qxg6 Qxg6 35. Ne7+ Kf8 36. Nxg6+ fxg6 37. Rf4+ Ke8) 34. Rg4 {[%emt 0:00:06] Intending Rxg6 and mate.} Ne6 {[%emt 0:00:02]} 35. Bxe6 {[%emt 0:06:58]} Qxe6 {[%emt 0:00:01] [#]} 36. Nh6+ $1 {[%emt 0:00:25][%mdl 512]} gxh6 {[%emt 0:00:06]} 37. Qxc5 {[%emt 0:00:03][%mdl 4096] Endgame KQR-KQN} h5 {[%emt 0:01:46]} 38. Rg1 {[%emt 0:02:53]} h4 {[%emt 0:00:14]} 39. Qg5 {[%emt 0:00:09]} Kf8 {[%emt 0:04:19]} 40. Qd8+ {[%emt 0:00:33]} Qe8 {[%emt 0:00:03]} 41. Qxe8+ {[%emt 0:00:56]} Kxe8 {[%emt 0:00:01] KR-KN} 42. Kc2 {[%emt 0:00:02]} Ke7 {[%emt 0:00:07]} 43. Kd3 {[%emt 0:00:10]} Ke6 {[%emt 0:00:02]} 44. Ke4 {[%emt 0:00:09]} f5+ {[%emt 0:00:06]} (44... Ne5 $142 45. Rc1 Nc6) 45. Kd4 {[%emt 0:00:04]} Nf4 {[%emt 0:00:05] And now ...Ne2+ would win.} 46. Rg7 {[%emt 0:00:13]} b5 {[%emt 0:00:12]} 47. Rh7 {[%emt 0:00:12]} h3 {[%emt 0:00:07]} 48. Rh6+ {[%emt 0:00:05]} Kf7 {[%emt 0:00:03]} 49. Rxa6 {[%emt 0:00:08] Rb6 is the strong threat.} Kg7 {[%emt 0:00:20]} 50. Ke5 {[%emt 0:00:19]} Nd3+ {[%emt 0:00:11]} 51. Kxf5 {[%emt 0:00:05] Threatening mate with Rb6.} Nxb2 {[%emt 0:00:04]} 52. Kg4 {[%emt 0:00:07] White mates.} Nd3 {[%emt 0:00:08]} 53. Kxh3 {[%emt 0:00:08]} Nc5 {[%emt 0:00:03]} 54. Rb6 {[%emt 0:00:07]} Nd3 {[%emt 0:00:08]} 55. Rxb5 {[%emt 0:00:06]} Nf4+ {[%emt 0:00:02]} 56. Kg4 {[%emt 0:00:06]} Ne6 {[%emt 0:00:03]} 57. a4 {[%emt 0:00:05][%cal Ba3a4,Ba4a5][%mdl 32]} Nd4 {[%emt 0:00:04]} 58. Rb6 {[%emt 0:00:08]} Nc2 {[%emt 0:00:05]} 59. a5 {[%emt 0:00:05]} Ne3+ {[%emt 0:00:02]} 60. Kg5 {[%emt 0:00:07] Weighted Error Value: White=0.09 (flawless) /Black=0.57} 1-0